fUST/lending_fUST_20250709
["ID","MTS","AMOUNT","RATE_DAILY","PERIOD"]
[370494574,1752045067209,-460.0,0.0002,2]
[370494575,1752045067230,-460.0,0.0002,2]
[370494577,1752045067252,-1295.78627,0.0002,2]
[370494579,1752045067276,-460.0,0.0002,2]
[370494581,1752045067303,-460.0,0.0002,2]
[370494583,1752045067328,-460.0,0.0002,2]
[370494585,1752045067351,-460.0,0.0002,2]
[370494587,1752045067375,-460.0,0.00020273,2]
[370494589,1752045067397,-460.0,0.00020273,2]
[370494591,1752045067420,-1295.78627,0.00020273,2]
[370494593,1752045067444,-460.0,0.00020273,2]
[370494595,1752045067466,-460.0,0.00020273,2]
[370494597,1752045067491,-460.0,0.00020273,2]
[370494599,1752045067509,-460.0,0.00020273,2]
[370494601,1752045067518,-460.0,0.00020547,2]
[370494603,1752045067528,-460.0,0.00020547,2]
[370494605,1752045067539,-460.0,0.00020547,2]
[370494607,1752045067548,-460.0,0.00020547,2]
[370494609,1752045067558,-460.0,0.00020547,2]
[370494611,1752045067568,-460.0,0.00020547,2]
[370494613,1752045067577,-165.3,0.00020821,2]
[370494615,1752045067587,-460.0,0.00020821,2]
[370494617,1752045067597,-460.0,0.00020821,2]
[370494619,1752045067607,-460.0,0.00020821,2]
[370494621,1752045067618,-460.0,0.00020821,2]
[370494624,1752045067629,-460.0,0.00020821,2]
[370494626,1752045067639,-460.0,0.00021095,2]
[370494628,1752045067650,-460.0,0.00021095,2]
[370494630,1752045067660,-231.06,0.00021095,2]
[370494632,1752045067669,-460.0,0.00021369,2]
[370494634,1752045067679,-460.0,0.00021369,2]
[370494636,1752045067688,-460.0,0.00021643,2]
[370494638,1752045067698,-460.0,0.00021643,2]
[370494640,1752045067708,-1295.78627,0.00021917,2]
[370494642,1752045067718,-1295.78627,0.00021917,2]
[370494643,1752045067728,-460.0,0.00021917,2]
[370494646,1752045067738,-460.0,0.00021917,2]
[370494648,1752045067753,-153.0,0.00021918,2]
[370494650,1752045067763,-153.0,0.00021918,2]
[370494652,1752045067774,-153.0,0.00021918,2]
[370494654,1752045067784,-500.0,0.00021918,2]
[370494656,1752045067794,-500.0,0.00021918,2]
[370494658,1752045067804,-1295.78627,0.00022,7]
[370494660,1752045067815,-1295.78627,0.00022,7]
[370494662,1752045067825,-460.0,0.00022191,2]
[370494664,1752045067835,-460.0,0.00022191,2]
[370494666,1752045067844,-211.2,0.00022465,2]
[370494668,1752045067855,-1295.78627,0.000235,7]
[370494670,1752045067865,-1295.78627,0.000235,7]
[370494672,1752045067875,-1295.78627,0.000248,7]
[370494674,1752045067887,-1295.78627,0.000248,7]
[370494677,1752045067897,-151.0,0.00024877,2]
[370494679,1752045067907,-558302.55389862,0.000249,2]
[370494681,1752045067917,-151.0,0.000249,7]
[370494683,1752045067926,-151.0,0.000249,7]
[370494684,1752045067935,-1295.78627,0.000249,7]
[370494686,1752045067945,-1295.78627,0.000249,7]
[370494689,1752045067956,-837.99933892,0.000249,7]
[370494691,1752045067965,-1295.78627,0.000249,7]
[370494693,1752045067978,-1295.78627,0.000249,7]
[370494695,1752045067988,-2546.23613704,0.000249,2]
[370494697,1752045067998,-500.0,0.00024904,2]
[370494699,1752045068008,-265.89111439,0.00024904,2]
[370494701,1752045068019,-199.23623132,0.00024904,2]
[370494703,1752045068030,-151.0,0.00024904,2]
[370494704,1752045068040,-195.57710585,0.00024904,2]
[370494706,1752045068051,-239.06014223,0.00024904,2]
[370494709,1752045068062,-151.0,0.00024904,2]
[370494711,1752045068072,-151.0,0.00024904,2]
[370494713,1752045068082,-500.0,0.00024904,2]
[370494715,1752045068091,-200.37131241,0.00024904,2]
[370494717,1752045068100,-168.0,0.00024925,2]
[370494719,1752045068110,-1214.49,0.00024931,2]
[370494721,1752045068119,-2189.94,0.00024931,2]
[370494723,1752045068129,-465.73,0.00024931,2]
[370494724,1752045068140,-498.33,0.00024931,2]
[370494727,1752045068151,-516.57,0.00024931,2]
[370494729,1752045068160,-709.72,0.00024931,2]
[370494731,1752045068170,-500.0,0.00024932,2]
[370494733,1752045068179,-200.24290546,0.00024932,2]
[370494735,1752045068188,-151.0,0.00024932,2]
[370494737,1752045068197,-176.78491121,0.00024932,2]
[370494739,1752045068209,-500.0,0.00024932,2]
[370494741,1752045068219,-211.0,0.0002494,2]
[370494743,1752045068228,-206.0,0.0002494,2]
[370494745,1752045068238,-3100.86416095,0.0002495,2]
[370494747,1752045068247,-500.0,0.00024959,2]
[370494749,1752045068257,-295.79137799,0.00024959,2]
[370494751,1752045068266,-500.0,0.00024959,2]
[370494753,1752045068276,-55738.09,0.00024961,10]
[370494755,1752045068286,-6002.68,0.00024961,10]
[370494757,1752045068295,-6096.97,0.00024961,10]
[370494759,1752045068305,-946.73713639,0.00024984,2]
[370494761,1752045068315,-500.0,0.00024987,2]
[370494763,1752045068324,-500.0,0.00024987,2]
[370494765,1752045068333,-468.91,0.00025,30]
[370494767,1752045068343,-2016.8,0.00025,15]
[370494769,1752045068353,-500.0,0.00025,30]
[370494780,1752045068454,-2241.60003617,0.00025,2]
[370495592,1752045118820,294.46009,0.00013699,2]
[370495594,1752045165530,-169.24106211,0.00018972,2]
[370495595,1752045191092,-231.30938162,0.00018972,2]
[370495596,1752045191114,-68.69061838,0.00018972,2]
[370495597,1752045212420,977.0,0.0001815,2]
[370495600,1752045435485,-178.21062223,0.00018963,3]
[370495602,1752045465512,-281.78937777,0.000189,2]
[370495603,1752045570749,-281.78937777,0.000189,2]
[370495605,1752045645579,-160.0,0.000189,2]
[370495606,1752045647292,-300.0,0.000189,2]
[370495607,1752045649584,-234.33769343,0.000189,2]
[370495608,1752045691189,-281.78937777,0.000189,2]
[370495609,1752045720550,-236.42124446,0.000189,2]
[370495610,1752045722755,-300.0,0.000189,2]
[370495611,1752045752275,-74.30358778,0.000189,2]
[370495612,1752045752296,-207.48578999,0.00018962,2]
[370495613,1752045753379,-207.48578999,0.000189,2]
[370495614,1752045780535,-212.52564439,0.000189,2]
[370495615,1752045783303,-308.94688885,0.000189,2]
[370495616,1752045813037,-287.47435561,0.000189,2]
[370495617,1752045817073,-276.10439993,0.000189,2]
[370495618,1752045844649,-242.1062223,0.000189,2]
[370495619,1752045847182,-105.52353803,0.000189,2]
[370495620,1752045847204,-160.0,0.00018962,2]
[370495621,1752045847226,-16.26583974,0.00018962,2]
[370495622,1752045863089,24900.0,0.00018106,2]
[370495623,1752045871265,-76.24837027,0.00018962,2]
[370495624,1752045871287,-141.96225196,0.00018962,2]
[370495625,1752045874658,-158.03774804,0.00018962,2]
[370495626,1752045874679,-123.75162973,0.00018962,2]
[370495627,1752045915516,-281.78937777,0.00018962,2]
[370495628,1752045947879,-210.96871691,0.000189,2]
[370495629,1752045949796,-421.87377201,0.000189,2]
[370495631,1752045976914,-385.36813331,0.000189,2]
[370495632,1752045979108,-81.09407577,0.000189,2]
[370495633,1752045979133,-200.695302,0.00018962,2]
[370495634,1752046006182,-207.15751108,0.00018962,2]
[370495636,1752046034696,-153.9830452,0.000189,2]
[370495637,1752046040935,-106.13289704,0.000189,2]
[370495638,1752046040959,-81.51592445,0.00018962,2]
[370495639,1752046068314,-281.78937777,0.00018873,2]
[370495640,1752046090886,-332.19366743,0.00018873,2]
[370495641,1752046096179,-231.38508811,0.00018873,2]
[370495646,1752046105150,303.008543,0.00013699,2]
[370495648,1752046121244,-150.88829454,0.00018863,2]
[370495649,1752046121271,-48.7797285,0.00018873,2]
[370495650,1752046127858,-102.10856603,0.00018873,2]
[370495651,1752046127882,-54.64465539,0.00018873,2]
[370495654,1752046129965,-193.4317707,0.00018873,2]
[370495655,1752046129991,-88.35760707,0.00018962,2]
[370495661,1752046155428,-260.33197696,0.00018962,2]
[370495662,1752046180694,-80.15230067,0.00018962,2]
[370495663,1752046180718,-98.05832156,0.00018963,3]
[370495664,1752046182849,-281.78937777,0.00018963,3]
[370495665,1752046185308,-168.77242297,0.00018963,3]
[370495666,1752046215598,-207.15751108,0.00018963,3]
[370495671,1752046231881,-11.69236662,0.00018963,3]
[370495673,1752046231891,-383.74,0.00018963,3]
[370495675,1752046231901,-191.87,0.00018963,3]
[370495677,1752046231910,-575.61,0.00018963,3]
[370495679,1752046231920,-179.0,0.00018972,2]
[370495681,1752046231929,-1200.0,0.00018972,2]
[370495683,1752046231938,-300.0,0.00018972,2]
[370495685,1752046231947,-6992.08763342,0.00018973,2]
[370495692,1752046232012,-2516.36779886,0.00018973,2]
[370495694,1752046232023,-267.88980492,0.00018973,2]
[370495698,1752046232035,-7427.38074131,0.00018973,2]
[370495701,1752046232046,-5491.75639885,0.00018973,2]
[370495799,1752046237852,-347304.51762264,0.00018973,2]
[370495800,1752046237862,-500.0,0.00018973,2]
[370495801,1752046237871,-36392.85829376,0.00019,2]
[370495802,1752046237880,-1935.489258,0.00019,2]
[370495803,1752046237890,-25445.14320325,0.00019,2]
[370495804,1752046237899,-1099.30469798,0.00019013,2]
[370495805,1752046237909,-1099.30469798,0.00019126,2]
[370495806,1752046237918,-1935.48925783,0.00019141,2]
[370495807,1752046237927,-510.63688823,0.00019173,2]
[370495808,1752046237937,-210.54599124,0.00019173,2]
[370495809,1752046237946,-500.0,0.00019173,2]
[370495810,1752046237956,-500.31388984,0.00019173,2]
[370495811,1752046237966,-600.63343449,0.00019173,2]
[370495812,1752046237976,-500.0,0.00019173,2]
[370495813,1752046237986,-500.0,0.00019173,2]
[370495814,1752046237995,-441.91920675,0.00019173,2]
[370495815,1752046238004,-632.05917641,0.00019173,2]
[370495816,1752046238013,-501.58885187,0.00019173,2]
[370495817,1752046238022,-500.0,0.00019173,2]
[370495818,1752046238041,-433.16256318,0.00019173,2]
[370495819,1752046238052,-500.7170249,0.00019173,2]
[370495820,1752046238061,-500.0,0.00019173,2]
[370495821,1752046238072,-500.0,0.00019173,2]
[370495822,1752046238081,-500.0,0.00019173,2]
[370495823,1752046238091,-500.4867861,0.00019173,2]
[370495824,1752046238101,-261.06706103,0.00019173,2]
[370495825,1752046238111,-500.0,0.00019173,2]
[370495826,1752046238120,-327.83287246,0.00019173,2]
[370495827,1752046238130,-500.0,0.00019173,2]
[370495828,1752046238140,-500.0,0.00019173,2]
[370495829,1752046238149,-502.21159757,0.00019173,2]
[370495830,1752046238159,-500.0,0.00019173,2]
[370495831,1752046238169,-500.0,0.00019173,2]
[370495832,1752046238179,-500.0,0.00019173,2]
[370495833,1752046238189,-500.62086774,0.00019173,2]
[370495834,1752046238199,-500.0,0.00019173,2]
[370495835,1752046238208,-500.92108304,0.00019173,2]
[370495836,1752046238218,-500.0,0.00019173,2]
[370495837,1752046238228,-2925.92320661,0.00019174,2]
[370495838,1752046238237,-386.21336494,0.00019177,2]
[370495839,1752046238247,-500.0,0.00019177,2]
[370495840,1752046238256,-500.0,0.00019177,2]
[370495841,1752046238266,-167.73074778,0.00019177,2]
[370495842,1752046238276,-500.0,0.00019177,2]
[370495843,1752046238285,-500.0,0.00019177,2]
[370495844,1752046238295,-500.0,0.00019177,2]
[370495845,1752046238304,-500.0,0.00019177,2]
[370495846,1752046238314,-450.0,0.00019177,2]
[370495847,1752046238324,-460.0,0.00019178,2]
[370495848,1752046238334,-519.73450156,0.00019178,2]
[370495849,1752046238343,-460.0,0.00019178,2]
[370495850,1752046238353,-420.42735733,0.00019178,2]
[370495851,1752046238363,-1000.0,0.00019178,2]
[370495852,1752046238372,-460.0,0.00019178,2]
[370495853,1752046238387,-460.0,0.00019178,2]
[370495854,1752046238396,-460.0,0.00019178,2]
[370495855,1752046238406,-460.0,0.00019178,2]
[370495856,1752046238419,-458.15983066,0.00019178,2]
[370495857,1752046238428,-460.0,0.00019178,2]
[370495858,1752046238438,-460.0,0.00019178,2]
[370495859,1752046238449,-460.0,0.00019178,2]
[370495860,1752046238459,-461.36852937,0.00019178,2]
[370495861,1752046238468,-461.97650134,0.00019178,2]
[370495862,1752046238478,-460.0,0.00019178,2]
[370495863,1752046238487,-234.48865346,0.00019178,2]
[370495864,1752046238496,-460.0,0.00019178,2]
[370495865,1752046238506,-273.41865025,0.00019178,2]
[370495866,1752046238516,-460.0,0.00019178,2]
[370495867,1752046238526,-458.49538227,0.00019178,2]
[370495868,1752046238535,-500.0,0.00019178,2]
[370495869,1752046238545,-460.0,0.00019178,2]
[370495870,1752046238555,-460.0,0.00019178,2]
[370495871,1752046238565,-460.0,0.00019178,2]
[370495872,1752046238574,-460.0,0.00019178,2]
[370495873,1752046238584,-460.0,0.00019178,2]
[370495874,1752046238594,-460.0,0.00019178,2]
[370495875,1752046238603,-461.51657105,0.00019178,2]
[370495876,1752046238612,-460.0,0.00019178,2]
[370495877,1752046238622,-461.39233905,0.00019178,2]
[370495878,1752046238631,-460.0,0.00019178,2]
[370495879,1752046238641,-460.0,0.00019178,2]
[370495880,1752046238651,-460.0,0.00019178,2]
[370495881,1752046238661,-465.3308405,0.00019178,2]
[370495882,1752046238670,-462.79995484,0.00019178,2]
[370495883,1752046238680,-460.69496259,0.00019178,2]
[370495884,1752046238689,-460.0,0.00019178,2]
[370495885,1752046238699,-460.0,0.00019178,2]
[370495886,1752046238708,-460.69438364,0.00019178,2]
[370495887,1752046238718,-460.0,0.00019178,2]
[370495888,1752046238727,-460.0,0.00019178,2]
[370495889,1752046238736,-460.0,0.00019178,2]
[370495890,1752046238746,-460.0,0.00019178,2]
[370495891,1752046238755,-460.0,0.00019178,2]
[370495892,1752046238765,-460.0,0.00019178,2]
[370495893,1752046238774,-460.0,0.00019178,2]
[370495894,1752046238784,-460.0,0.00019178,2]
[370495895,1752046238794,-179.11536866,0.00019178,2]
[370495896,1752046238803,-460.0,0.00019178,2]
[370495897,1752046238812,-604.30546092,0.00019178,2]
[370495898,1752046238823,-460.0,0.00019178,2]
[370495899,1752046238833,-460.0,0.00019178,2]
[370495900,1752046238962,-460.58191153,0.00019178,2]
[370495901,1752046238972,-460.0,0.00019178,2]
[370495902,1752046238982,-460.0,0.00019178,2]
[370495903,1752046238992,-460.0,0.00019178,2]
[370495904,1752046239001,-460.0,0.00019178,2]
[370495905,1752046239010,-460.0,0.00019178,2]
[370495906,1752046239019,-460.0,0.00019178,2]
[370495907,1752046239029,-460.0,0.00019178,2]
[370495908,1752046239038,-460.40916096,0.00019178,2]
[370495909,1752046239047,-377.45370272,0.00019178,2]
[370495910,1752046239057,-460.0,0.00019178,2]
[370495911,1752046239066,-460.0,0.00019178,2]
[370495912,1752046239076,-460.587367,0.00019178,2]
[370495913,1752046239086,-460.0,0.00019178,2]
[370495914,1752046239095,-460.0,0.00019178,2]
[370495915,1752046239108,-460.0,0.00019178,2]
[370495916,1752046239118,-460.0,0.00019178,2]
[370495917,1752046239127,-460.0,0.00019178,2]
[370495918,1752046239137,-461.0627595,0.00019178,2]
[370495919,1752046239146,-460.0,0.00019178,2]
[370495920,1752046239156,-460.94439946,0.00019178,2]
[370495921,1752046239166,-460.0,0.00019178,2]
[370495922,1752046239175,-460.0,0.00019178,2]
[370495923,1752046239185,-576.90736699,0.00019178,2]
[370495924,1752046239194,-460.0,0.00019178,2]
[370495925,1752046239204,-460.0,0.00019178,2]
[370495926,1752046239213,-460.0,0.00019178,2]
[370495927,1752046239222,-460.0,0.00019178,2]
[370495928,1752046239231,-460.0,0.00019178,2]
[370495929,1752046239242,-460.0,0.00019178,2]
[370495930,1752046239251,-460.0,0.00019178,2]
[370495931,1752046239260,-460.0,0.00019178,2]
[370495932,1752046239270,-460.0,0.00019178,2]
[370495933,1752046239279,-460.0,0.00019178,2]
[370495934,1752046239289,-460.0,0.00019178,2]
[370495935,1752046239298,-460.42684504,0.00019178,2]
[370495936,1752046239307,-460.0,0.00019178,2]
[370495937,1752046239317,-460.0,0.00019178,2]
[370495938,1752046239327,-461.09584477,0.00019178,2]
[370495939,1752046239336,-460.0,0.00019178,2]
[370495940,1752046239346,-460.0,0.00019178,2]
[370495941,1752046239355,-460.0,0.00019178,2]
[370495942,1752046239365,-460.0,0.00019178,2]
[370495943,1752046239374,-460.0,0.00019178,2]
[370495944,1752046239387,-460.0,0.00019178,2]
[370495945,1752046239397,-460.0,0.00019178,2]
[370495946,1752046239406,-460.0,0.00019178,2]
[370495947,1752046239416,-460.0,0.00019178,2]
[370495948,1752046239425,-460.0,0.00019178,2]
[370495949,1752046239434,-438.56226335,0.00019178,2]
[370495950,1752046239444,-462.62111136,0.00019178,2]
[370495951,1752046239453,-462.01272789,0.00019178,2]
[370495952,1752046239463,-460.0,0.00019178,2]
[370495953,1752046239472,-460.0,0.00019178,2]
[370495954,1752046239482,-460.0,0.00019178,2]
[370495955,1752046239492,-460.0,0.00019178,2]
[370495956,1752046239502,-460.0,0.00019178,2]
[370495957,1752046239511,-460.0,0.00019178,2]
[370495958,1752046239521,-460.0,0.00019178,2]
[370495959,1752046239531,-460.0,0.00019178,2]
[370495960,1752046239540,-462.6401403,0.00019178,2]
[370495961,1752046239550,-460.0,0.00019178,2]
[370495962,1752046239560,-390.4223919,0.00019178,2]
[370495963,1752046239569,-460.0,0.00019178,2]
[370495964,1752046239580,-460.0,0.00019178,2]
[370495965,1752046239590,-460.0,0.00019178,2]
[370495966,1752046239599,-460.0,0.00019178,2]
[370495967,1752046239608,-460.0,0.00019178,2]
[370495968,1752046239617,-510.58315203,0.00019178,2]
[370495969,1752046239627,-460.52846546,0.00019178,2]
[370495970,1752046239636,-460.0,0.00019178,2]
[370495971,1752046239646,-460.0,0.00019178,2]
[370495972,1752046239655,-460.0,0.00019178,2]
[370495973,1752046239664,-312.54805013,0.00019178,2]
[370495974,1752046239674,-460.0,0.00019178,2]
[370495975,1752046239683,-460.0,0.00019178,2]
[370495976,1752046239692,-472.05619032,0.00019178,2]
[370495977,1752046239702,-460.0,0.00019178,2]
[370495978,1752046239711,-460.0,0.00019178,2]
[370495979,1752046239720,-460.0,0.00019178,2]
[370495980,1752046239730,-460.0,0.00019178,2]
[370495981,1752046239740,-460.0,0.00019178,2]
[370495982,1752046239749,-460.0,0.00019178,2]
[370495983,1752046239759,-460.0,0.00019178,2]
[370495984,1752046239768,-460.0,0.00019178,2]
[370495985,1752046239777,-460.0,0.00019178,2]
[370495986,1752046239788,-460.0,0.00019178,2]
[370495987,1752046239802,-460.0,0.00019178,2]
[370495988,1752046239811,-460.88885331,0.00019178,2]
[370495989,1752046239821,-460.0,0.00019178,2]
[370495990,1752046239831,-460.78551633,0.00019178,2]
[370495991,1752046239840,-460.0,0.00019178,2]
[370495992,1752046239849,-460.0,0.00019178,2]
[370495993,1752046239859,-460.0,0.00019178,2]
[370495994,1752046239868,-460.0,0.00019178,2]
[370495995,1752046239877,-285.81745648,0.00019178,2]
[370495996,1752046239886,-460.0,0.00019178,2]
[370495997,1752046239896,-460.0,0.00019178,2]
[370495998,1752046239905,-460.0,0.00019178,2]
[370495999,1752046239914,-460.0,0.00019178,2]
[370496000,1752046239923,-460.0,0.00019178,2]
[370496001,1752046239932,-460.0,0.00019178,2]
[370496002,1752046239942,-460.0,0.00019178,2]
[370496003,1752046239952,-460.0,0.00019178,2]
[370496005,1752046239961,-460.0,0.00019178,2]
[370496006,1752046239970,-540.87268781,0.00019178,2]
[370496007,1752046239984,-460.0,0.00019178,2]
[370496008,1752046239993,-460.0,0.00019178,2]
[370496009,1752046240003,-460.0,0.00019178,2]
[370496010,1752046240013,-460.0,0.00019178,2]
[370496011,1752046240022,-460.0,0.00019178,2]
[370496012,1752046240032,-460.0,0.00019178,2]
[370496013,1752046240042,-542.19702195,0.00019178,2]
[370496014,1752046240052,-460.0,0.00019178,2]
[370496015,1752046240062,-460.0,0.00019178,2]
[370496016,1752046240071,-460.56769466,0.00019178,2]
[370496017,1752046240081,-642.44,0.00019178,2]
[370496018,1752046240091,-460.0,0.00019178,2]
[370496019,1752046240100,-460.0,0.00019178,2]
[370496020,1752046240110,-460.0,0.00019178,2]
[370496021,1752046240119,-460.0,0.00019178,2]
[370496022,1752046240129,-460.0,0.00019178,2]
[370496023,1752046240138,-460.0,0.00019178,2]
[370496024,1752046240148,-460.0,0.00019178,2]
[370496025,1752046240158,-460.0,0.00019178,2]
[370496026,1752046240168,-460.0,0.00019178,2]
[370496027,1752046240177,-460.21990245,0.00019178,2]
[370496028,1752046240187,-460.0,0.00019178,2]
[370496029,1752046240197,-460.0,0.00019178,2]
[370496030,1752046240206,-380.91344605,0.00019178,2]
[370496031,1752046240216,-460.91241457,0.00019178,2]
[370496032,1752046240225,-460.0,0.00019178,2]
[370496033,1752046240234,-460.0,0.00019178,2]
[370496034,1752046240244,-460.0,0.00019178,2]
[370496035,1752046240253,-460.0,0.00019178,2]
[370496036,1752046240263,-460.0,0.00019178,2]
[370496037,1752046240272,-460.0,0.00019178,2]
[370496038,1752046240282,-460.0,0.00019178,2]
[370496039,1752046240292,-460.0,0.00019178,2]
[370496040,1752046240302,-460.0,0.00019178,2]
[370496041,1752046240311,-460.0,0.00019178,2]
[370496042,1752046240321,-460.0,0.00019178,2]
[370496043,1752046240333,-460.0,0.00019178,2]
[370496044,1752046240343,-460.0,0.00019178,2]
[370496045,1752046240353,-460.0,0.00019178,2]
[370496046,1752046240362,-151.89460854,0.00019178,2]
[370496047,1752046240372,-460.0,0.00019178,2]
[370496048,1752046240384,-460.0,0.00019178,2]
[370496049,1752046240393,-460.0,0.00019178,2]
[370496050,1752046240402,-460.0,0.00019178,2]
[370496051,1752046240412,-460.0,0.00019178,2]
[370496052,1752046240423,-460.0,0.00019178,2]
[370496053,1752046240519,-460.0,0.00019178,2]
[370496054,1752046240528,-460.0,0.00019178,2]
[370496055,1752046240538,-460.0,0.00019178,2]
[370496056,1752046240547,-463.92054118,0.00019178,2]
[370496057,1752046240556,-460.0,0.00019178,2]
[370496058,1752046240565,-460.0,0.00019178,2]
[370496059,1752046240574,-460.0,0.00019178,2]
[370496060,1752046240584,-460.0,0.00019178,2]
[370496061,1752046240594,-460.0,0.00019178,2]
[370496062,1752046240603,-460.0,0.00019178,2]
[370496063,1752046240613,-460.0,0.00019178,2]
[370496064,1752046240622,-460.0,0.00019178,2]
[370496065,1752046240632,-460.0,0.00019178,2]
[370496066,1752046240642,-460.0,0.00019178,2]
[370496067,1752046240652,-502.98507897,0.00019178,2]
[370496068,1752046240667,-460.0,0.00019178,2]
[370496069,1752046240676,-460.0,0.00019178,2]
[370496070,1752046240686,-460.0,0.00019178,2]
[370496071,1752046240695,-505.29805009,0.00019178,2]
[370496072,1752046240704,-460.0,0.00019178,2]
[370496073,1752046240713,-460.0,0.00019178,2]
[370496074,1752046240723,-460.0,0.00019178,2]
[370496075,1752046240732,-460.0,0.00019178,2]
[370496076,1752046240741,-460.0,0.00019178,2]
[370496077,1752046240750,-460.0,0.00019178,2]
[370496078,1752046240759,-460.0,0.00019178,2]
[370496079,1752046240769,-460.0,0.00019178,2]
[370496080,1752046240778,-460.0,0.00019178,2]
[370496081,1752046240787,-460.0,0.00019178,2]
[370496082,1752046240797,-460.52728204,0.00019178,2]
[370496083,1752046240808,-261.35401117,0.00019178,2]
[370496084,1752046240817,-460.0,0.00019178,2]
[370496085,1752046240827,-460.0,0.00019178,2]
[370496086,1752046240835,-460.0,0.00019178,2]
[370496087,1752046240844,-500.0,0.00019178,2]
[370496088,1752046240853,-460.0,0.00019178,2]
[370496089,1752046240862,-460.0,0.00019178,2]
[370496090,1752046240873,-460.0,0.00019178,2]
[370496091,1752046240884,-460.0,0.00019178,2]
[370496092,1752046240894,-460.0,0.00019178,2]
[370496093,1752046240904,-460.0,0.00019178,2]
[370496094,1752046240913,-460.0,0.00019178,2]
[370496095,1752046240923,-460.0,0.00019178,2]
[370496096,1752046240932,-460.0,0.00019178,2]
[370496097,1752046240941,-460.0,0.00019178,2]
[370496098,1752046240950,-460.0,0.00019178,2]
[370496099,1752046240961,-460.0,0.00019178,2]
[370496100,1752046240971,-460.0,0.00019178,2]
[370496101,1752046240981,-460.0,0.00019178,2]
[370496102,1752046240992,-460.0,0.00019178,2]
[370496103,1752046241002,-460.0,0.00019178,2]
[370496104,1752046241014,-460.0,0.00019178,2]
[370496105,1752046241024,-460.0,0.00019178,2]
[370496106,1752046241034,-460.0,0.00019178,2]
[370496107,1752046241043,-460.0,0.00019178,2]
[370496108,1752046241053,-460.0,0.00019178,2]
[370496109,1752046241063,-460.0,0.00019178,2]
[370496110,1752046241074,-460.0,0.00019178,2]
[370496111,1752046241083,-460.0,0.00019178,2]
[370496112,1752046241092,-460.0,0.00019178,2]
[370496113,1752046241102,-460.0,0.00019178,2]
[370496114,1752046241111,-460.0,0.00019178,2]
[370496115,1752046241121,-460.0,0.00019178,2]
[370496116,1752046241131,-460.0,0.00019178,2]
[370496117,1752046241140,-460.0,0.00019178,2]
[370496118,1752046241150,-460.0,0.00019178,2]
[370496119,1752046241160,-417.93475774,0.00019178,2]
[370496120,1752046241170,-460.0,0.00019178,2]
[370496121,1752046241179,-511.67018085,0.00019178,2]
[370496122,1752046241188,-460.0,0.00019178,2]
[370496123,1752046241198,-460.0,0.00019178,2]
[370496124,1752046241208,-460.92429336,0.00019178,2]
[370496125,1752046241217,-460.0,0.00019178,2]
[370496126,1752046241227,-460.0,0.00019178,2]
[370496127,1752046241236,-460.0,0.00019178,2]
[370496128,1752046241245,-460.0,0.00019178,2]
[370496129,1752046241255,-460.0,0.00019178,2]
[370496130,1752046241264,-460.0,0.00019178,2]
[370496131,1752046241273,-460.0,0.00019178,2]
[370496132,1752046241283,-460.0,0.00019178,2]